bitfinex/quotes_BTCUSD_20250829
["timestamp","ask_amount","ask_price","bid_price","bid_amount"]
[1756457042936,0.01189978,110080.0,110070.0,0.50816887]
[1756457043775,0.00989978,110080.0,110070.0,0.34504887]
[1756457043986,1.04113403,110080.0,110070.0,0.50812887]
[1756457044188,1.04309403,110080.0,110070.0,0.50912887]
[1756457044399,1.04309403,110080.0,110070.0,0.50606887]
[1756457045214,1.21951681,110080.0,110070.0,0.50395887]
[1756457045418,1.22799815,110080.0,110070.0,0.50395887]
[1756457045608,1.22799815,110080.0,110070.0,0.34087887]
[1756457045809,1.22799815,110080.0,110070.0,0.50395887]
[1756457046044,1.22799815,110080.0,110070.0,0.50695887]
[1756457046430,1.07748867,110080.0,110070.0,0.50695887]
[1756457046640,1.25917471,110080.0,110070.0,0.50695887]
[1756457047055,1.25917471,110080.0,110070.0,0.50691887]
[1756457047260,1.07748867,110080.0,110070.0,0.50691887]
[1756457047469,1.07425867,110080.0,110070.0,0.50902887]
[1756457047672,1.07748867,110080.0,110070.0,0.50691887]
[1756457047886,0.04525442,110080.0,110070.0,0.50691887]
[1756457048087,1.07748867,110080.0,110070.0,0.50691887]
[1756457048714,1.07748268,110080.0,110070.0,0.50902887]
[1756457050509,1.07748268,110080.0,110070.0,0.51208887]
[1756457050510,1.07229268,110080.0,110070.0,0.51208887]
[1756457050934,0.04005843,110080.0,110070.0,0.51208887]
[1756457051394,0.02310402,110080.0,110070.0,0.51208887]
[1756457052519,0.00888372,110080.0,110070.0,0.51208887]
[1756457053411,0.00888372,110080.0,110070.0,0.51200887]
[1756457053633,0.00888372,110080.0,110070.0,0.34904887]
[1756457053847,0.00888248,110080.0,110070.0,0.51200887]
[1756457054775,1.04307673,110080.0,110070.0,0.34904887]
[1756457055006,1.3332366,110080.0,110070.0,0.34387887]
[1756457055217,1.3332366,110080.0,110070.0,0.50679887]
[1756457055634,1.33323535,110080.0,110070.0,0.50679887]
[1756457055848,1.06325299,110080.0,110070.0,0.50679887]
[1756457056771,1.07747252,110080.0,110070.0,0.50679887]
[1756457058177,0.04523827,110080.0,110070.0,0.50679887]
[1756457058414,1.07747252,110080.0,110070.0,0.50679887]
[1756457058643,0.04523827,110080.0,110070.0,0.50679887]
[1756457058890,1.07747252,110080.0,110070.0,0.50679887]
[1756457059345,1.25915856,110080.0,110070.0,0.50679887]
[1756457059582,1.25915856,110080.0,110070.0,0.50675887]
[1756457060708,2.10970677,110080.0,110070.0,0.50675887]
[1756457061314,2.29139281,110080.0,110070.0,0.07388]
[1756457061556,2.29775424,110080.0,110070.0,0.23672]
[1756457061753,2.29775424,110080.0,110070.0,0.16684]
[1756457062557,2.29777332,110080.0,110070.0,0.16584]
[1756457062796,2.29877332,110080.0,110070.0,0.16584]
[1756457062952,2.38706964,110080.0,110070.0,0.16584]
[1756457063156,2.72706964,110080.0,110070.0,0.16584]
[1756457063490,2.71285011,110080.0,110070.0,0.16584]
[1756457063695,2.89520233,110080.0,110070.0,0.003]
[1756457064275,2.90811911,110080.0,110070.0,0.003]
[1756457065975,2.90813993,110080.0,110070.0,0.003]
[1756457066647,2.94968636,110080.0,110070.0,0.003]
[1756457066890,2.94964636,110080.0,110070.0,0.003]
[1756457067435,2.9740112,110080.0,110070.0,0.003]
[1756457069090,2.8112512,110080.0,110070.0,0.003]
[1756457069310,2.94964636,110080.0,110070.0,0.003]
[1756457070285,0.06700472,110080.0,110070.0,0.44083887]
[1756457070498,0.04108779,110080.0,110070.0,0.44083887]
[1756457071672,0.04008779,110080.0,110070.0,0.44083887]
[1756457071886,0.04108779,110080.0,110070.0,0.44083887]
[1756457072093,0.04008779,110080.0,110070.0,0.44083887]
[1756457072316,0.02311523,110080.0,110070.0,0.44083887]
[1756457072556,1.05534948,110080.0,110070.0,0.28111887]
[1756457072761,1.05534948,110080.0,110070.0,0.44679887]
[1756457073395,0.02311523,110080.0,110070.0,0.44379887]
[1756457074891,1.03089749,110080.0,110070.0,0.28111887]
[1756457075090,1.03089749,110080.0,110070.0,0.44075887]
[1756457075353,1.03089749,110080.0,110070.0,0.44275887]
[1756457075533,1.03089749,110080.0,110070.0,0.44375887]
[1756457075757,1.03089749,110080.0,110070.0,0.44075887]
[1756457076173,1.03089749,110080.0,110070.0,0.44375887]
[1756457076370,1.03089636,110080.0,110070.0,0.28111887]
[1756457076581,1.03089636,110080.0,110070.0,0.44375887]
[1756457076774,1.03089636,110080.0,110070.0,0.28111887]
[1756457076980,0.83362328,110080.0,110070.0,0.28111887]
[1756457077207,0.83362328,110080.0,110070.0,0.44371887]
[1756457077959,1.01530932,110080.0,110070.0,0.44371887]
[1756457078261,1.02046932,110080.0,110070.0,0.44055887]
[1756457078470,1.20311345,110080.0,110070.0,0.44055887]
[1756457078897,1.20311345,110080.0,110070.0,0.27495887]
[1756457079086,1.20311345,110080.0,110070.0,0.43755887]
[1756457079414,1.20311345,110080.0,110070.0,0.43855887]
[1756457079634,1.01626741,110080.0,110070.0,0.44171887]
[1756457080064,1.20009345,110080.0,110070.0,0.43855887]
[1756457080354,0.00848515,110080.0,110070.0,0.53328851]
[1756457080568,0.0004,110090.0,110080.0,0.18168604]
[1756457080714,0.0004,110090.0,110080.0,0.25472604]
[1756457080919,0.0004,110090.0,110080.0,1.28540712]
[1756457081122,0.0004,110090.0,110080.0,1.72540712]
[1756457081758,0.0004,110090.0,110080.0,0.71810115]
[1756457082157,0.0004,110090.0,110080.0,1.81417973]
[1756457082358,0.0004,110090.0,110080.0,1.81717973]
[1756457082519,0.0014,110090.0,110080.0,1.82217973]
[1756457082908,0.0014,110090.0,110080.0,2.22217973]
[1756457083109,0.0014,110090.0,110080.0,1.21939747]
[1756457083277,0.0014,110090.0,110080.0,1.82717973]
[1756457083679,0.0014,110090.0,110080.0,2.22717973]
[1756457084083,0.0014,110090.0,110080.0,1.82717973]
[1756457084318,0.0014,110090.0,110080.0,1.85448773]
[1756457084652,0.0014,110090.0,110080.0,1.24670547]
[1756457085276,0.0014,110090.0,110080.0,0.84670547]
[1756457085833,0.0014,110090.0,110080.0,0.79670547]
[1756457086034,0.0014,110090.0,110080.0,0.84670547]
[1756457086835,0.0014,110090.0,110080.0,1.00914547]
[1756457088081,0.0014,110090.0,110080.0,1.00910547]
[1756457088281,0.0014,110090.0,110080.0,0.38576665]
[1756457088530,0.00342,110090.0,110080.0,0.51769865]
[1756457089317,0.00342,110090.0,110080.0,0.35529865]
[1756457089533,0.00342,110090.0,110080.0,0.52069865]
[1756457089745,0.00242,110090.0,110080.0,0.50769865]
[1756457090107,0.0004,110090.0,110080.0,0.51169865]
[1756457091009,0.0004,110090.0,110080.0,0.51569865]
[1756457091420,0.00242,110090.0,110080.0,0.51569865]
[1756457091629,1.01318226,110090.0,110080.0,0.51065865]
[1756457091836,1.02163639,110090.0,110080.0,0.51065865]
[1756457092044,0.01385413,110090.0,110080.0,0.51065865]
[1756457092240,1.02163639,110090.0,110080.0,0.51065865]
[1756457092829,1.20330593,110090.0,110080.0,0.51065865]
[1756457093093,0.01385413,110090.0,110080.0,0.51065865]
[1756457093485,1.02163639,110090.0,110080.0,0.51065865]
[1756457093640,0.0138509,110090.0,110080.0,0.51065865]
[1756457093839,1.02163316,110090.0,110080.0,0.50665865]
[1756457094375,1.02163316,110090.0,110080.0,0.50865865]
[1756457094790,1.02163316,110090.0,110080.0,0.50665865]
[1756457095219,1.02163316,110090.0,110080.0,0.50865865]
[1756457095426,1.02163316,110090.0,110080.0,0.50465865]
[1756457095638,1.02163316,110090.0,110080.0,0.50565865]
[1756457096304,0.0088509,110090.0,110080.0,0.51081865]
[1756457096719,0.00885756,110090.0,110080.0,0.51081865]
[1756457097003,0.0004,110090.0,110080.0,0.51081865]
[1756457098328,0.00886565,110090.0,110080.0,0.51081865]
[1756457100378,0.19255519,110090.0,110080.0,0.34333865]
[1756457100584,1.20331745,110090.0,110080.0,0.50553865]
[1756457101131,1.02164791,110090.0,110080.0,0.50553865]
[1756457101535,0.01088565,110090.0,110080.0,0.50765865]
[1756457101736,0.00886565,110090.0,110080.0,0.51069865]
[1756457102184,1.80627793,110090.0,110080.0,0.00347629]
[1756457102410,1.84911508,110090.0,110080.0,0.00347629]
[1756457102832,1.84911508,110090.0,110070.0,0.003]
[1756457102833,0.18168604,110080.0,110070.0,0.003]
[1756457103024,1.25368788,110080.0,110070.0,0.00347858]
[1756457103217,1.25868788,110080.0,110070.0,0.00347858]
[1756457103416,1.32745769,110080.0,110070.0,0.00347858]
[1756457103623,1.34698392,110080.0,110070.0,0.00347858]
[1756457104036,1.34898392,110080.0,110070.0,0.00347858]
[1756457104456,0.22246233,110080.0,110070.0,0.00347858]
[1756457104655,1.57024459,110080.0,110070.0,0.00347858]
[1756457104860,1.57024459,110080.0,110070.0,0.16559858]
[1756457105733,1.56824459,110080.0,110070.0,0.16559858]
[1756457105903,1.56924459,110080.0,110070.0,0.16559858]
[1756457106150,1.56724459,110080.0,110070.0,0.16559858]
[1756457106283,1.5502819,110080.0,110070.0,0.16771858]
[1756457106508,1.55987989,110080.0,110070.0,0.16771858]
[1756457106803,0.02839159,110080.0,110070.0,0.44302873]
[1756457107016,0.02839159,110080.0,110070.0,0.51138827]
[1756457107216,0.21007763,110080.0,110070.0,0.16756572]
[1756457107420,1.21987989,110080.0,110070.0,0.27559745]
[1756457107755,1.30915621,110080.0,110070.0,0.00347858]
[1756457107977,1.22085989,110080.0,110070.0,0.16555858]
[1756457108157,1.56285989,110080.0,110070.0,0.00347858]
[1756457108428,1.56285989,110080.0,110070.0,0.16555858]
[1756457108845,0.55407763,110080.0,110070.0,0.16555858]
[1756457109054,1.56185989,110080.0,110070.0,0.16555858]
[1756457109489,1.56085989,110080.0,110070.0,0.16555858]
[1756457109692,0.36539159,110080.0,110070.0,0.35165241]
[1756457109901,0.02539159,110080.0,110070.0,0.44071745]
[1756457110110,0.02539159,110080.0,110070.0,0.27863745]
[1756457110262,0.02539159,110080.0,110070.0,0.43763745]
[1756457110263,0.20909763,110080.0,110070.0,0.43763745]
[1756457110478,1.21787989,110080.0,110070.0,0.43763745]
[1756457110683,1.21787989,110080.0,110070.0,0.0938949]
[1756457110884,1.21687989,110080.0,110070.0,0.43763745]
[1756457111216,1.21687989,110080.0,110070.0,0.2569349]
[1756457111428,1.30815621,110080.0,110070.0,0.16651858]
[1756457111548,1.21985989,110080.0,110070.0,0.16651858]
[1756457111755,1.21985989,110080.0,110070.0,0.00447858]
[1756457111957,1.55985989,110080.0,110070.0,0.00447858]
[1756457112165,0.36741159,110080.0,110070.0,0.16859858]
[1756457112377,0.54909763,110080.0,110070.0,0.16859858]
[1756457112656,1.55687989,110080.0,110070.0,0.16859858]
[1756457112845,1.56085989,110080.0,110070.0,0.16647858]
[1756457113063,1.55985989,110080.0,110070.0,0.16647858]
[1756457113256,1.55985989,110080.0,110070.0,0.16547858]
[1756457113493,1.56085989,110080.0,110070.0,0.16547858]
[1756457113618,1.55985989,110080.0,110070.0,0.16547858]
[1756457114021,1.64915621,110080.0,110070.0,0.00347858]
[1756457114225,1.65450182,110080.0,110070.0,0.00347858]
[1756457115086,1.81650182,110080.0,110070.0,0.00347858]
[1756457115948,1.8294186,110080.0,110070.0,0.00347858]
[1756457116165,1.8304186,110080.0,110070.0,0.00347858]
[1756457116578,1.84146496,110080.0,110070.0,0.00347858]
[1756457116782,1.84992145,110080.0,110070.0,0.00347858]
[1756457117213,1.87724229,110080.0,110070.0,0.00347858]
[1756457117442,1.88024229,110080.0,110070.0,0.00347858]
[1756457117647,1.87924229,110080.0,110070.0,0.00347858]
[1756457117839,0.18171906,110060.0,110050.0,0.23465858]
[1756457118039,1.21690307,110060.0,110050.0,0.23513809]
[1756457119100,0.20912081,110060.0,110050.0,0.41687366]
[1756457119297,1.03316401,110060.0,110050.0,0.42201366]
[1756457119495,1.03316401,110060.0,110050.0,0.51030998]
[1756457119496,0.02538175,110060.0,110050.0,0.51030998]
[1756457120056,0.00815784,110060.0,110050.0,0.51030998]
[1756457120260,1.1894996,110070.0,110050.0,0.51030998]
[1756457120469,1.19585069,110070.0,110050.0,0.51030998]
[1756457120851,1.19585069,110070.0,110050.0,0.51230998]
[1756457121051,1.19585069,110070.0,110050.0,0.51430998]
[1756457121310,1.19585069,110070.0,110050.0,0.51230998]
[1756457121824,1.19585069,110070.0,110060.0,0.18399054]
[1756457121825,1.53585069,110070.0,110060.0,0.18399054]
[1756457121996,1.34778226,110070.0,110060.0,0.18685906]
[1756457122201,0.34,110070.0,110060.0,0.27515538]
[1756457122407,1.00778226,110070.0,110060.0,0.27515538]
[1756457122738,1.5385526,110080.0,110060.0,0.27515538]
[1756457122943,1.54490631,110080.0,110070.0,0.16196]
[1756457123082,1.54693631,110080.0,110070.0,0.16397]
[1756457123531,1.54693631,110080.0,110070.0,0.34567255]
[1756457123966,1.54693631,110080.0,110070.0,0.16397]
[1756457124083,1.54793631,110080.0,110070.0,0.16397]
[1756457124724,1.54693631,110080.0,110070.0,0.16397]
[1756457125132,1.54693631,110080.0,110070.0,0.34794383]
[1756457125369,1.54693631,110080.0,110070.0,0.34567255]
[1756457125572,1.54590631,110080.0,110070.0,0.34567255]
[1756457125791,0.34635371,110080.0,110070.0,0.34880255]
[1756457126000,0.00635371,110080.0,110070.0,0.43709887]
[1756457126175,0.0004,110090.0,110080.0,0.18168604]
[1756457126519,0.0004,110090.0,110080.0,0.18481604]
[1756457126720,1.1898518,110090.0,110080.0,0.18682604]
[1756457126922,1.00818226,110090.0,110080.0,0.18682604]
[1756457127166,1.00818226,110090.0,110080.0,0.27512236]
[1756457127317,1.00818226,110090.0,110080.0,0.27612236]
[1756457127522,1.00818226,110090.0,110080.0,0.27712236]
[1756457127985,1.00818226,110090.0,110080.0,0.27612236]
[1756457128617,1.00818226,110090.0,110080.0,0.27512236]
[1756457129023,1.00818226,110090.0,110080.0,0.27612236]
[1756457129444,1.00818226,110090.0,110080.0,0.43800236]
[1756457129671,1.1898518,110090.0,110080.0,0.27712236]
[1756457129972,1.1898518,110090.0,110080.0,0.43900236]
[1756457130353,1.00818226,110090.0,110080.0,0.43800236]
[1756457131115,1.19249561,110100.0,110080.0,0.43800236]
[1756457131469,1.19249561,110100.0,110090.0,0.08829632]
[1756457131669,1.19452561,110100.0,110090.0,0.08829632]
[1756457131871,0.18674335,110100.0,110090.0,0.26996586]
[1756457132076,1.19452561,110100.0,110090.0,0.26996586]
[1756457132286,1.2199541,110100.0,110090.0,0.26996586]
[1756457132634,0.20911184,110100.0,110090.0,0.27245537]
[1756457132872,1.2168941,110100.0,110090.0,0.27558537]
[1756457133104,1.03524075,110100.0,110090.0,0.27558537]
[1756457133293,0.02642849,110100.0,110090.0,0.27558537]
[1756457133554,0.02742849,110100.0,110090.0,0.27558537]
[1756457134369,0.02642849,110100.0,110090.0,0.27558537]
[1756457134579,0.20808153,110100.0,110090.0,0.43842537]
[1756457134959,0.02642849,110100.0,110090.0,0.43842537]
[1756457135360,0.02542849,110100.0,110090.0,0.43842537]
[1756457135562,0.02542849,110100.0,110090.0,0.43942537]
[1756457136340,0.20708153,110100.0,110090.0,0.43742537]
[1756457136959,1.21486379,110100.0,110090.0,0.43742537]
[1756457137166,1.21689379,110100.0,110090.0,0.43742537]
[1756457137383,1.20841814,110100.0,110090.0,0.43742537]
[1756457137589,1.21687251,110100.0,110090.0,0.43429537]
[1756457138410,1.21687251,110100.0,110090.0,0.27245537]
[1756457138617,1.21687251,110100.0,110090.0,0.43425537]
[1756457139399,0.02540721,110100.0,110090.0,0.43738537]
[1756457141031,0.00846907,110100.0,110090.0,0.43738537]
[1756457141873,0.00846907,110100.0,110090.0,0.27558537]
[1756457142075,0.00846907,110100.0,110090.0,0.43734537]
[1756457142260,1.18941945,110110.0,110100.0,0.18165304]
[1756457142557,1.01827195,110110.0,110100.0,0.27195936]
[1756457143422,0.00845969,110110.0,110100.0,0.27508936]
[1756457144703,1.01124226,110130.0,110120.0,0.18162005]
[1756457144917,1.03863711,110130.0,110120.0,0.43368637]
[1756457145128,0.2093984,110130.0,110120.0,0.43368637]
[1756457145534,0.2093984,110130.0,110120.0,0.43412637]
[1756457145774,0.2124584,110130.0,110120.0,0.43412637]
[1756457145981,0.04400885,110130.0,110120.0,0.43412637]
[1756457146592,0.2286724,110130.0,110120.0,0.43211637]
[1756457146728,0.2286724,110130.0,110120.0,0.43412637]
[1756457146938,1.23445466,110130.0,110120.0,0.43412637]
[1756457147133,1.04979111,110130.0,110120.0,0.43725637]
[1756457147343,0.02306895,110130.0,110120.0,0.43725637]
[1756457147937,0.02305978,110130.0,110120.0,0.43725637]
[1756457148173,0.00884578,110130.0,110120.0,0.43725637]
[1756457148378,0.0004,110130.0,110120.0,0.43725637]
[1756457148578,0.00884461,110130.0,110120.0,0.43725637]
[1756457150936,1.20341042,110130.0,110120.0,0.43183637]
[1756457151159,0.00884461,110130.0,110120.0,0.43383637]
[1756457151393,0.17254193,110150.0,110130.0,0.18160355]
[1756457151644,1.00778226,110140.0,110130.0,0.18471355]
[1756457151842,0.18942749,110150.0,110140.0,0.18158707]
[1756457151843,0.0142125,110150.0,110140.0,0.18158707]
[1756457152071,1.22262166,110150.0,110140.0,0.18158707]
[1756457152724,1.22262166,110150.0,110140.0,0.18406658]
[1756457152933,1.22662166,110150.0,110140.0,0.18206658]
[1756457153293,1.22262166,110150.0,110140.0,0.18206658]
[1756457153713,0.2148394,110150.0,110140.0,0.18206658]
[1756457153879,1.22262166,110150.0,110140.0,0.18206658]
[1756457155141,1.22262166,110150.0,110140.0,0.00047951]
[1756457155362,1.00778226,110150.0,110140.0,0.16279951]
[1756457155575,1.19112284,110150.0,110140.0,0.00047951]
[1756457155776,1.53223284,110150.0,110140.0,0.00047951]
[1756457155987,1.62052916,110150.0,110140.0,0.16275951]
[1756457156198,1.53223284,110150.0,110140.0,0.16275951]
[1756457156401,2.5400151,110150.0,110140.0,0.00047951]
[1756457156599,2.73173106,110150.0,110140.0,0.00047951]
[1756457156777,2.75466988,110150.0,110140.0,0.00047951]
[1756457156974,2.8429662,110150.0,110140.0,0.00047951]
[1756457157230,2.8419662,110150.0,110140.0,0.00047951]
[1756457157432,2.84729546,110150.0,110140.0,0.00047951]
[1756457158279,2.84729714,110150.0,110140.0,0.00047951]
[1756457159005,2.86151129,110150.0,110140.0,0.00047951]
[1756457159433,2.86351129,110150.0,110140.0,0.00047951]
[1756457159656,0.18166753,110100.0,110080.0,0.07374082]
[1756457159853,0.00908182,110110.0,110090.0,0.18725747]
[1756457159854,0.19074701,110110.0,110090.0,0.18725747]
[1756457160075,0.18163654,110110.0,110100.0,0.23590082]
[1756457160318,1.1911888,110110.0,110100.0,0.23790082]
[1756457160520,0.18340654,110110.0,110100.0,0.23790082]
[1756457160808,0.18165304,110100.0,110090.0,0.00047793]
[1756457161012,1.1894353,110100.0,110090.0,0.34430747]
[1756457161215,1.1912053,110100.0,110090.0,0.16574793]
[1756457161548,1.1912053,110100.0,110090.0,0.00047793]
[1756457162434,1.3532853,110100.0,110090.0,0.00047793]
[1756457162615,1.3542853,110100.0,110090.0,0.00447793]
[1756457162829,2.73620799,110100.0,110090.0,0.00447793]
[1756457163032,2.76199246,110100.0,110090.0,0.00447793]
[1756457163250,2.7694342,110100.0,110090.0,0.00047793]
[1756457163466,2.7704342,110100.0,110090.0,0.00247793]
[1756457163683,2.7947467,110100.0,110090.0,0.00247793]
[1756457163890,2.88204302,110100.0,110090.0,0.00047793]
[1756457164306,2.85773052,110100.0,110090.0,0.00047793]
[1756457164514,2.85873052,110100.0,110090.0,0.00047793]
[1756457164723,2.87271031,110100.0,110090.0,0.00047793]
[1756457164920,2.71063031,110100.0,110090.0,0.00047793]
[1756457165154,2.87263031,110100.0,110090.0,0.00047793]
[1756457165481,2.89594281,110100.0,110090.0,0.00047793]
[1756457166079,2.89578281,110100.0,110090.0,0.00047793]
[1756457166252,2.73394281,110100.0,110090.0,0.00047793]
[1756457166457,2.89670281,110100.0,110090.0,0.00147793]
[1756457166869,2.92402481,110100.0,110090.0,0.00147793]
[1756457167445,2.94082135,110100.0,110090.0,0.00147793]
[1756457167642,2.77906135,110100.0,110090.0,0.00147793]
[1756457167922,1.77016909,110100.0,110090.0,0.00147793]
[1756457168153,1.63485145,110100.0,110090.0,0.00658793]
[1756457168440,1.44691646,110100.0,110090.0,0.00658793]
[1756457168699,1.42292043,110100.0,110090.0,0.00147793]
[1756457168922,1.50959842,110100.0,110090.0,0.00147793]
[1756457169160,2.9067505,110100.0,110090.0,0.00147793]
[1756457169383,7.91884211,110100.0,110090.0,1e-08]
[1756457169606,8.56680846,110100.0,110090.0,1e-08]
[1756457169823,8.56680846,110100.0,110050.0,0.00277858]
[1756457169824,0.18171906,110060.0,110050.0,0.00277858]
[1756457170056,1.78215043,110060.0,110050.0,0.00325742]
[1756457170268,1.59286829,110060.0,110050.0,0.00325742]
[1756457170483,1.78385616,110060.0,110050.0,0.00325742]
[1756457170683,1.78385359,110060.0,110050.0,0.00325742]
[1756457170882,1.59286829,110060.0,110050.0,0.00325742]
[1756457171087,1.59286829,110060.0,110050.0,0.00525742]
[1756457171088,0.5469724,110060.0,110050.0,0.00525742]
[1756457171286,1.71999466,110060.0,110050.0,0.00836742]
[1756457172707,1.72099466,110060.0,110050.0,0.01036742]
[1756457172912,1.72276466,110060.0,110050.0,0.00525742]
[1756457173087,1.73550691,110060.0,110050.0,0.00325742]
[1756457173291,1.84423904,110060.0,110050.0,0.00325742]
[1756457173474,1.84523904,110060.0,110050.0,0.00525742]
[1756457174049,1.84412904,110060.0,110050.0,0.00725742]
[1756457174173,1.67888904,110060.0,110050.0,0.00725742]
[1756457174382,2.85455431,110060.0,110050.0,0.00525742]
[1756457174601,2.87282659,110060.0,110050.0,0.00325742]
[1756457174806,1.86504433,110060.0,110050.0,0.00325742]
[1756457175611,1.86492433,110060.0,110050.0,0.00325742]
[1756457176018,1.86492433,110060.0,110050.0,0.00425742]
[1756457176210,1.86481433,110060.0,110050.0,0.00425742]
[1756457176479,1.87903948,110060.0,110050.0,0.00425742]
[1756457176630,1.87803948,110060.0,110050.0,0.00325742]
[1756457176818,1.71303948,110060.0,110050.0,0.00325742]
[1756457177013,1.87903948,110060.0,110050.0,0.00425742]
[1756457177222,2.88793174,110060.0,110050.0,0.00425742]
[1756457177662,1.8800101,110060.0,110050.0,0.00425742]
[1756457178340,7.88763236,110060.0,110050.0,0.00425742]
[1756457178767,7.89390837,110060.0,110050.0,0.00425742]
[1756457179120,7.89390837,110060.0,110030.0,0.003]
[1756457179121,0.18175209,110040.0,110030.0,0.003]
[1756457179322,1.29956515,110040.0,110030.0,0.00314294]
[1756457179540,1.46617515,110040.0,110030.0,0.00314294]
[1756457179757,1.53605515,110040.0,110030.0,0.00314294]
[1756457179974,1.55028272,110040.0,110030.0,0.00314294]
[1756457180394,1.7457138,110040.0,110030.0,0.00514294]
[1756457180608,1.9104738,110040.0,110030.0,0.00514294]
[1756457180812,1.9094738,110040.0,110030.0,0.00314294]
[1756457181262,1.90945605,110040.0,110030.0,0.00314294]
[1756457182061,1.93150487,110040.0,110030.0,0.00314294]
[1756457182246,1.96180638,110040.0,110030.0,0.00314294]
[1756457182798,1.96284638,110040.0,110030.0,0.00414294]
[1756457183756,1.79724638,110040.0,110030.0,0.00314294]
[1756457183987,1.96168638,110040.0,110030.0,0.00314294]
[1756457184196,1.79824638,110040.0,110030.0,0.00314294]
[1756457184403,1.99002638,110040.0,110030.0,0.00314294]
[1756457184732,1.82758638,110040.0,110030.0,0.00314294]
[1756457184970,2.02424658,110040.0,110030.0,0.00314294]
[1756457185310,1.99083638,110040.0,110030.0,0.00314294]
[1756457185601,2.02313658,110040.0,110030.0,0.00314294]
[1756457186006,1.85877658,110040.0,110030.0,0.00314294]
[1756457186223,1.96349638,110040.0,110030.0,0.00314294]
[1756457186422,1.99936158,110040.0,110030.0,0.00314294]
[1756457186977,1.97838276,110040.0,110030.0,0.00314294]
[1756457187375,1.97509643,110040.0,110030.0,0.00314294]
[1756457187618,0.52178512,110020.0,110010.0,0.003]
[1756457187820,1.85424547,110020.0,110010.0,0.00314326]
[1756457188024,1.84981538,110020.0,110010.0,0.00314326]
[1756457188215,1.85610814,110020.0,110010.0,0.00314326]
[1756457188412,1.86417031,110020.0,110010.0,0.00314326]
[1756457188846,1.86417015,110020.0,110010.0,0.00314326]
[1756457189306,1.86517015,110020.0,110010.0,0.00414326]
[1756457189458,1.91362045,110020.0,110010.0,0.00414326]
[1756457189861,6.91362045,110020.0,110010.0,0.00414326]
[1756457190132,6.94096445,110020.0,110010.0,0.00414326]
[1756457190334,6.93996445,110020.0,110010.0,0.00314326]
[1756457190506,6.91262045,110020.0,110010.0,0.00314326]
[1756457190721,6.9278511,110020.0,110010.0,0.00314326]
[1756457191124,6.9288511,110020.0,110010.0,0.00314326]
[1756457191323,6.91462045,110020.0,110010.0,0.00314326]
[1756457191738,6.91442045,110020.0,110010.0,0.00314326]
[1756457192393,6.88120059,110020.0,110010.0,0.00314326]
[1756457192773,6.91445427,110020.0,110010.0,0.00314326]
[1756457192983,6.91236427,110020.0,110010.0,0.00840326]
[1756457193190,1.86391397,110020.0,110010.0,0.00840326]
[1756457193549,1.86568397,110020.0,110010.0,0.00314326]
[1756457193808,1.91413427,110020.0,110010.0,0.00314326]
[1756457194244,1.91421427,110020.0,110010.0,0.00314326]
[1756457194669,1.75053427,110020.0,110010.0,0.00840326]
[1756457194879,1.91413427,110020.0,110010.0,0.00840326]
[1756457195087,1.92838013,110020.0,110010.0,0.00314326]
[1756457195301,1.89612645,110020.0,110010.0,0.00314326]
[1756457195518,1.73252645,110020.0,110010.0,0.00314326]
[1756457195741,1.92662044,110020.0,110010.0,0.00840326]
[1756457196457,0.46880264,110020.0,110010.0,0.00840326]
[1756457196671,1.44432091,110020.0,110010.0,0.00840326]
[1756457196908,0.07696294,110020.0,110010.0,0.26083573]
[1756457197106,0.22824957,110020.0,110010.0,0.26083573]
[1756457197364,0.22724957,110020.0,110010.0,0.26083573]
[1756457197889,0.56624957,110020.0,110010.0,0.26083573]
[1756457198090,0.38446445,110020.0,110010.0,0.26083573]
[1756457198286,0.36766143,110020.0,110010.0,0.26283573]
[1756457198511,0.57261312,110020.0,110010.0,0.26283573]
[1756457198914,0.57261312,110020.0,110010.0,0.01040326]
[1756457199124,1.58039538,110020.0,110010.0,0.01040326]
[1756457199338,1.60560707,110020.0,110010.0,0.01140326]
[1756457199538,0.59782481,110020.0,110010.0,0.01140326]
[1756457199805,1.76896707,110020.0,110010.0,0.01140326]
[1756457200239,1.76796707,110020.0,110010.0,0.01040326]
[1756457200645,1.82388012,110020.0,110010.0,0.01040326]
[1756457200841,1.85614411,110020.0,110010.0,0.01040326]
[1756457201071,1.85714411,110020.0,110010.0,0.01240326]
[1756457201682,1.63787106,110020.0,110010.0,0.01240326]
[1756457201973,0.59782481,110020.0,110010.0,0.19420491]
[1756457202173,0.59782481,110020.0,110010.0,0.01240326]
[1756457202798,0.7932088,110020.0,110010.0,0.01240326]
[1756457202974,1.80099106,110020.0,110010.0,0.01240326]
[1756457203179,1.83116132,110020.0,110010.0,0.01240326]
[1756457203902,0.79330158,110020.0,110010.0,0.01240326]
[1756457204732,0.63018158,110020.0,110010.0,0.01240326]
[1756457204949,0.79310158,110020.0,110010.0,0.01240326]
[1756457205162,0.76880307,110020.0,110010.0,0.01240326]
[1756457205503,1.77658533,110020.0,110010.0,0.01240326]
[1756457205705,1.82680563,110020.0,110010.0,0.01240326]
[1756457205906,1.91510195,110020.0,110010.0,0.01240326]
[1756457206101,1.91506195,110020.0,110010.0,0.01240326]
[1756457206569,1.91502195,110020.0,110010.0,0.01240326]
[1756457207168,1.93041605,110020.0,110010.0,0.00714326]
[1756457207337,1.89815206,110020.0,110010.0,0.00714326]
[1756457208974,1.89826934,110020.0,110010.0,0.00714326]
[1756457210426,1.89649934,110020.0,110010.0,0.01217326]
[1756457210614,0.80014076,110020.0,110010.0,0.01217326]
[1756457211255,1.80792302,110020.0,110010.0,0.01217326]
[1756457211471,1.80969302,110020.0,110010.0,0.01217326]
[1756457212322,1.80792302,110020.0,110010.0,0.01217326]
[1756457212742,1.84619655,110020.0,110010.0,0.01217326]
[1756457212977,1.84796655,110020.0,110010.0,0.01217326]
[1756457213394,1.84764655,110020.0,110010.0,0.01217326]
[1756457213597,1.68540655,110020.0,110010.0,0.01217326]
[1756457213798,1.84760655,110020.0,110010.0,0.01217326]
[1756457214321,1.68363655,110020.0,110010.0,0.01217326]
[1756457214745,1.80756302,110020.0,110010.0,0.01217326]
[1756457215203,0.47283968,110020.0,110010.0,0.19397491]
[1756457215430,0.07628062,110020.0,110010.0,0.35290205]
[1756457215648,0.05195124,110020.0,110010.0,0.35290205]
[1756457216885,0.04561521,110020.0,110010.0,0.35290205]
[1756457217505,0.02634413,110020.0,110010.0,0.35290205]
[1756457217912,0.02634413,110020.0,110010.0,0.28227123]
[1756457218188,0.00944804,110020.0,110010.0,0.28227123]
[1756457219322,0.001,110020.0,110010.0,0.28227123]
[1756457220607,0.001,110020.0,110010.0,0.44443123]
[1756457221929,1.19056738,110020.0,110010.0,0.01217326]
[1756457222138,1.79757128,110020.0,110010.0,0.00714326]
[1756457222358,1.83241816,110020.0,110010.0,0.00714326]
[1756457222574,1.83352816,110020.0,110010.0,0.00714326]
[1756457223243,1.83241816,110020.0,110010.0,0.00714326]
[1756457225222,1.83352816,110020.0,110010.0,0.00714326]
[1756457225680,1.89029568,110020.0,110010.0,0.00714326]
[1756457226355,1.89029568,110020.0,110010.0,0.00514326]
[1756457226356,1.69469754,110020.0,110010.0,0.00514326]